fUSD/lending_fUSD_20240429
["ID","MTS","AMOUNT","RATE_DAILY","PERIOD"]
[324892827,1714401061382,-500.0,0.00012874,2]
[324892828,1714401061392,-500.0,0.00012874,2]
[324892829,1714401061402,-500.0,0.00012874,2]
[324892830,1714401061411,-500.0,0.00012874,2]
[324892831,1714401061420,-500.0,0.00012874,2]
[324892832,1714401061430,-500.0,0.00012874,2]
[324892833,1714401061439,-500.0,0.00012874,2]
[324892834,1714401061449,-532.17,0.00012874,2]
[324892835,1714401061458,-500.0,0.00012874,2]
[324892836,1714401061468,-500.0,0.00012874,2]
[324892837,1714401061478,-500.0,0.00012874,2]
[324892838,1714401061488,-500.0,0.00012874,2]
[324892839,1714401061497,-500.0,0.00012874,2]
[324892840,1714401061507,-500.0,0.00012874,2]
[324892841,1714401061517,-500.0,0.00012874,2]
[324892842,1714401061526,-547.45,0.00012874,2]
[324892843,1714401061536,-500.0,0.00012874,2]
[324892844,1714401061545,-500.0,0.00012874,2]
[324892845,1714401061554,-500.0,0.00012874,2]
[324892846,1714401061563,-500.0,0.00012874,2]
[324892847,1714401061573,-500.0,0.00012874,2]
[324892848,1714401061582,-736.63,0.00012874,2]
[324892849,1714401061591,-500.0,0.00012874,2]
[324892850,1714401061601,-721.46,0.00012874,2]
[324892851,1714401061611,-500.0,0.00012874,2]
[324892852,1714401061621,-500.0,0.00012874,2]
[324892853,1714401061641,-500.0,0.00012874,2]
[324892854,1714401061651,-500.0,0.00012874,2]
[324892855,1714401061660,-500.0,0.00012874,2]
[324892856,1714401061669,-500.0,0.00012874,2]
[324892857,1714401061679,-500.0,0.00012874,2]
[324892858,1714401061688,-500.0,0.00012874,2]
[324892859,1714401061713,-443.99,0.00012874,2]
[324892860,1714401061722,-500.0,0.00012874,2]
[324892861,1714401061732,-500.0,0.00012874,2]
[324892862,1714401061741,-500.0,0.00012874,2]
[324892863,1714401061751,-500.0,0.00012874,2]
[324892864,1714401061760,-230.94188576,0.00012874,2]
[324892865,1714401061769,-500.0,0.00012874,2]
[324892866,1714401061778,-500.0,0.00012874,2]
[324892867,1714401061788,-182.76262755,0.00012874,2]
[324892868,1714401061798,-953.17,0.00012874,2]
[324892869,1714401061807,-500.0,0.00012874,2]
[324892870,1714401061816,-1105.34,0.00012874,2]
[324892871,1714401061826,-500.0,0.00012874,2]
[324892872,1714401061835,-500.0,0.00012874,2]
[324892873,1714401061844,-500.0,0.00012874,2]
[324892874,1714401061854,-500.0,0.00012874,2]
[324892875,1714401061863,-500.0,0.00012874,2]
[324892876,1714401061872,-500.0,0.00012874,2]
[324892877,1714401061887,-628.56,0.00012874,2]
[324892878,1714401061896,-500.0,0.00012874,2]
[324892879,1714401061905,-500.0,0.00012874,2]
[324892880,1714401061914,-723.81,0.00012874,2]
[324892881,1714401061923,-500.0,0.00012874,2]
[324892882,1714401061932,-636.63,0.00012874,2]
[324892883,1714401061941,-500.0,0.00012874,2]
[324892884,1714401061950,-500.0,0.00012874,2]
[324892885,1714401061959,-500.0,0.00012874,2]
[324892886,1714401061969,-500.0,0.00012874,2]
[324892887,1714401061978,-500.0,0.00012874,2]
[324892888,1714401061988,-662.52,0.00012874,2]
[324892889,1714401061997,-500.0,0.00012874,2]
[324892890,1714401062007,-1009.44,0.00012874,2]
[324892891,1714401062016,-500.0,0.00012874,2]
[324892892,1714401062025,-500.0,0.00012874,2]
[324892893,1714401062034,-500.0,0.00012874,2]
[324892894,1714401062043,-500.0,0.00012874,2]
[324892895,1714401062052,-500.0,0.00012874,2]
[324892896,1714401062061,-500.0,0.00012874,2]
[324892897,1714401062070,-500.0,0.00012874,2]
[324892898,1714401062079,-1339.46,0.00012874,2]
[324892899,1714401062088,-695.53,0.00012874,2]
[324892900,1714401062098,-1009.28,0.00012874,2]
[324892901,1714401062108,-500.0,0.00012874,2]
[324892902,1714401062118,-155.37553427,0.00012874,2]
[324892903,1714401062126,-3757.61,0.00012874,2]
[324892904,1714401062144,-500.0,0.00012874,2]
[324892905,1714401062154,-1022.74,0.00012874,2]
[324892906,1714401062163,-883.01,0.00012874,2]
[324892907,1714401062284,-500.0,0.00012874,2]
[324892908,1714401062294,-500.0,0.00012874,2]
[324892909,1714401062303,-500.0,0.00012874,2]
[324892910,1714401062315,-500.0,0.00012874,2]
[324892911,1714401062326,-1190.59,0.00012874,2]
[324892912,1714401062335,-816.61,0.00012874,2]
[324892913,1714401062345,-667.2,0.00012874,2]
[324892914,1714401062354,-500.0,0.00012874,2]
[324892915,1714401062363,-838.66,0.00012874,2]
[324892916,1714401062372,-500.0,0.00012874,2]
[324892917,1714401062386,-500.0,0.00012874,2]
[324892918,1714401062395,-500.0,0.00012874,2]
[324892919,1714401062405,-500.0,0.00012875,2]
[324892920,1714401062414,-500.0,0.00012875,2]
[324892921,1714401062423,-500.0,0.00012875,2]
[324892922,1714401062433,-500.0,0.00012875,2]
[324892923,1714401062442,-500.0,0.00012875,2]
[324892924,1714401062452,-500.0,0.00012875,2]
[324892925,1714401062461,-500.0,0.00012875,2]
[324892926,1714401062470,-500.0,0.00012875,2]
[324892927,1714401062480,-500.0,0.00012875,2]
[324892928,1714401062488,-500.0,0.00012875,2]
[324892929,1714401062498,-500.0,0.00012875,2]
[324892930,1714401062507,-500.0,0.00012875,2]
[324892931,1714401062517,-500.0,0.00012875,2]
[324892932,1714401062526,-500.0,0.00012875,2]
[324892933,1714401062536,-500.0,0.00012875,2]
[324892934,1714401062546,-593.98,0.00012875,2]
[324892935,1714401062555,-500.0,0.00012875,2]
[324892936,1714401062565,-500.0,0.00012875,2]
[324892937,1714401062574,-500.0,0.00012875,2]
[324892938,1714401062583,-500.0,0.00012875,2]
[324892939,1714401062593,-500.0,0.00012875,2]
[324892940,1714401062603,-500.0,0.00012875,2]
[324892941,1714401062612,-500.0,0.00012875,2]
[324892942,1714401062622,-500.0,0.00012875,2]
[324892943,1714401062635,-802.8100053,0.00012876,2]
[324892944,1714401062644,-746.3754978,0.00012876,2]
[324892945,1714401062653,-1158.3231795,0.00012876,2]
[324892946,1714401062663,-710.0904143,0.00012876,2]
[324892947,1714401062672,-150.0,0.00012877,2]
[324892948,1714401062681,-518.0,0.00012877,2]
[324892949,1714401062690,-352.42102634,0.00012883,2]
[324892950,1714401062699,-1451.4,0.00012885,2]
[324892951,1714401062708,-155.25533383,0.00012886,2]
[324892952,1714401062718,-305.55726546,0.00012886,2]
[324892953,1714401062728,-555.0588353,0.00012886,2]
[324892954,1714401062738,-217.79630601,0.00012886,2]
[324892955,1714401062748,-192.87287043,0.00012887,2]
[324892956,1714401062758,-5643.78073506,0.00012887,2]
[324892957,1714401062768,-500.0,0.00012887,2]
[324892958,1714401062778,-979.22,0.00012887,2]
[324892959,1714401062789,-28071.16395501,0.00012888,2]
[324892960,1714401062799,-2683.48638,0.00012888,2]
[324892961,1714401062809,-1451.4,0.00012889,2]
[324892962,1714401062820,-979.22,0.00012889,2]
[324892963,1714401062830,-250000.0,0.0001289,2]
[324892964,1714401062840,-759.0430615,0.00012891,2]
[324892965,1714401062850,-715.2761177,0.00012891,2]
[324892966,1714401062859,-671.5091739,0.00012891,2]
[324892967,1714401062869,-627.74223,0.00012891,2]
[324892968,1714401062879,-583.9752862,0.00012891,2]
[324892969,1714401062895,-705.6852046,0.00012891,2]
[324892970,1714401062904,-664.9949115,0.00012891,2]
[324892971,1714401062914,-624.3046183,0.00012891,2]
[324892972,1714401062923,-583.6143251,0.00012891,2]
[324892973,1714401062932,-542.924032,0.00012891,2]
[324892974,1714401062940,-1095.1746572,0.00012891,2]
[324892975,1714401062950,-1032.026135,0.00012891,2]
[324892976,1714401062960,-968.8776127,0.00012891,2]
[324892977,1714401062969,-905.7290904,0.00012891,2]
[324892978,1714401062978,-842.5805681,0.00012891,2]
[324892979,1714401062987,-671.3782818,0.00012891,2]
[324892980,1714401062997,-632.6661494,0.00012891,2]
[324892981,1714401063007,-593.9540169,0.00012891,2]
[324892982,1714401063016,-1081.73,0.00012896,2]
[324892983,1714401063025,-252.76358006,0.00012898,2]
[324892984,1714401063040,-9139.65530632,0.00012898,2]
[324892985,1714401063061,-1171.81270543,0.00012899,3]
[324892986,1714401063072,-1451.4,0.00012899,2]
[324892987,1714401063081,-1451.4,0.00012899,2]
[324892988,1714401063090,-1451.4,0.00012899,2]
[324892989,1714401063100,-1451.4,0.00012899,2]
[324892990,1714401063110,-1451.4,0.00012899,2]
[324892991,1714401063119,-1451.4,0.00012899,2]
[324892992,1714401063128,-1451.4,0.00012899,2]
[324892993,1714401063143,-1451.4,0.00012899,2]
[324892994,1714401063152,-1451.4,0.00012899,2]
[324892995,1714401063161,-1451.4772173,0.00012899,2]
[324892996,1714401063170,-979.22,0.00012899,2]
[324892997,1714401063179,-979.22,0.00012899,2]
[324892998,1714401063188,-979.22,0.00012899,2]
[324892999,1714401063197,-979.22,0.00012899,2]
[324893000,1714401063206,-979.22,0.00012899,2]
[324893001,1714401063215,-979.22,0.00012899,2]
[324893002,1714401063224,-979.22,0.00012899,2]
[324893003,1714401063234,-979.22,0.00012899,2]
[324893004,1714401063246,-979.38371648,0.00012899,2]
[324893005,1714401063255,-2022705.51155678,0.000129,2]
[324893006,1714401063265,-101100.67079092,0.000129,2]
[324893007,1714401063274,-1000000.0,0.000129,2]
[324893008,1714401063285,-352.42102634,0.000129,2]
[324893009,1714401063294,-216.35313334,0.000129,2]
[324893010,1714401063304,-174.76121047,0.000129,2]
[324893011,1714401063313,-341.62616104,0.000129,2]
[324893012,1714401063322,-1648.0,0.000129,2]
[324893013,1714401063333,-3204.29839266,0.000129,2]
[324893014,1714401063342,-1321.13645575,0.000129,2]
[324893015,1714401063352,-1375.34953282,0.000129,2]
[324893016,1714401063361,-360.347614,0.00012906,2]
[324893017,1714401063372,-603.457535,0.00012906,2]
[324893018,1714401063385,-153.748316,0.00012906,2]
[324893019,1714401063395,-1025.344605,0.00012906,2]
[324893020,1714401063404,-154.87226492,0.00012932,2]
[324893021,1714401063413,-2147.90581452,0.00012949,2]
[324893022,1714401063421,-400.0,0.0001297,2]
[324893023,1714401063430,-400.0,0.0001297,2]
[324893024,1714401063439,-400.0,0.0001297,2]
[324893025,1714401063449,-500.0,0.0001297,2]
[324893026,1714401063458,-500.0,0.0001297,2]
[324893027,1714401063468,-500.0,0.0001297,2]
[324893028,1714401063477,-537.6733542,0.00012976,2]
[324893029,1714401063487,-5228.0,0.00012977,2]
[324893030,1714401063496,-226.0,0.0001299,2]
[324893031,1714401063506,-206.0,0.0001299,2]
[324893032,1714401063516,-206.0,0.0001299,2]
[324893033,1714401063525,-206.0,0.0001299,2]
[324893034,1714401063535,-206.0,0.0001299,2]
[324893035,1714401063544,-206.0,0.0001299,2]
[324893036,1714401063555,-206.0,0.0001299,2]
[324893037,1714401063564,-165.34,0.00012999,2]
[324893038,1714401063574,-622404.00461603,0.00013,2]
[324893039,1714401064001,-185860.44605099,0.00013,2]
[324893040,1714401064095,-613.61,0.00012049,2]
[324893041,1714401064105,-794.44,0.00012598,2]
[324893042,1714401064115,-555.2418845,0.00012891,2]
[324893043,1714401064124,-516.529752,0.00012891,2]
[324893044,1714401064138,-54.20759777,0.00013,2]
[324893045,1714401064175,-613.61,0.00012323,2]
[324893046,1714401064185,-25255.56881862,0.00013,2]
[324893047,1714401064208,-13373.8004515,0.00013,2]
[324893048,1714401064224,-2838.12070833,0.00013,2]
[324893049,1714401064241,-294.14994472,0.00013,2]
[324893050,1714401064260,-8095.4174114,0.00013,2]
[324893051,1714401064286,-613.61,0.00012597,2]
[324893052,1714401064295,-38779.8900664,0.00013,2]
[324893053,1714401064307,-806.1100004,0.00013,2]
[324893054,1714401064318,-686.000002,0.00013,2]
[324893055,1714401064354,-794.44,0.00012872,2]
[324893056,1714401064363,-1485.35820878,0.00013,2]
[324893057,1714401064377,-284.83040661,0.00013,2]
[324893058,1714401064393,-293.30521316,0.00013,2]
[324893059,1714401064986,-500.0,0.0001205,2]
[324893060,1714401065001,-500.0,0.00012324,2]
[324893061,1714401065016,-1257.0,0.00012398,2]
[324893062,1714401065030,-500.0,0.00012598,2]
[324893063,1714401065044,-613.61,0.00012871,2]
[324893064,1714401065059,-500.0,0.00012872,2]
[324893065,1714401065074,-207.38805241,0.00012887,2]
[324893066,1714401065087,-1122.00194759,0.00012887,2]
[324893067,1714401065132,-750.52233814,0.00012887,2]
[324893068,1714401065216,-3696.03882751,0.00012887,2]
[324893069,1714401065234,-281.92399163,0.00012887,2]
[324893070,1714401065249,-11139.18293136,0.00013,2]
[324893071,1714401065375,-811.34832108,0.00013,2]
[324893072,1714401065391,-378.79104645,0.00013,2]
[324893073,1714401065403,-640.7472672,0.00013,2]
[324893074,1714401065423,-24880.3792854,0.00013,2]
[324893075,1714401065435,-6342.3594,0.00013,2]
[324893076,1714401065446,-3015.82981398,0.00013,2]
[324893077,1714401065457,-6011.04403048,0.00013,2]
[324893078,1714401065468,-1850.51231363,0.00013,2]
[324893079,1714401065486,-275.919,0.00013,2]
[324893080,1714401065498,-2563.8422149,0.00013,2]
[324893081,1714401065510,-1831.2598064,0.00013,2]
[324893082,1714401065522,-2030.81171266,0.00013,2]
[324893084,1714401193126,318.21,9.06e-05,2]
[324893085,1714401671955,312.43,8.728e-05,2]
[324893086,1714401726818,10000.0,0.00025,120]
[324893087,1714401741644,30000.0,0.00025,120]
[324893088,1714401756624,30000.0,0.00025,120]
[324893089,1714401759408,30000.0,0.00025,120]
[324893090,1714401771810,29059.2768458,0.00025,120]
[324893108,1714402127899,250.98,9.5e-05,2]
[324893109,1714402136823,250.98,9.5e-05,2]
[324893121,1714402231874,-273.20046859,9.948e-05,2]
[324893124,1714402231884,-273.20046859,9.948e-05,2]
[324893126,1714402231895,-2426.66637239,9.948e-05,2]
[324893128,1714402232011,-1887.03,9.948e-05,2]
[324893129,1714402232023,-277.81309369,9.948e-05,2]
[324893130,1714402232032,-89.97424691,9.949e-05,2]
[324893131,1714402232066,-183.22622168,9.949e-05,2]
[324893132,1714402232075,-259.90000009,0.00010459,2]
[324893133,1714402232084,-161.11918863,0.00010538,2]
[324893134,1714402232094,-731.1952307,0.00010624,2]
[324893135,1714402232175,-94.8547693,0.00010624,2]
[324893153,1714402232384,-527.61,0.00010638,2]
[324893155,1714402232393,-198.96,0.00010645,2]
[324893157,1714402232402,-829.26,0.00010645,2]
[324893159,1714402232411,-180.43,0.00010658,2]
[324893161,1714402232421,-224.26,0.00010945,2]
[324893163,1714402232430,-150.0,0.00010959,2]
[324893165,1714402232439,-312.43,0.00010992,2]
[324893168,1714402232449,-241.88017996,0.00011006,2]
[324893169,1714402232458,-152.18579797,0.00011018,2]
[324893171,1714402232467,-152.18579797,0.00011037,2]
[324893172,1714402232476,-2076.30895403,0.00011066,2]
[324893173,1714402232486,-166.84086599,0.00011069,2]
[324893174,1714402232496,-167.4157475,0.00011118,2]
[324893175,1714402232505,-177.54930701,0.00011138,2]
[324893176,1714402232514,-249.89509224,0.00011445,7]
[324893177,1714402232523,-153.74346246,0.00011481,2]
[324893178,1714402232533,-241.88017996,0.00011483,2]
[324893179,1714402232542,-51.85984561,0.00011541,2]
[324893180,1714402232554,-362.25015439,0.00011541,2]
[324893181,1714402232563,-155.96028244,0.00011578,2]
[324893182,1714402232572,-448.0611285,0.00011599,2]
[324893183,1714402232582,-2076.30895403,0.00011712,2]
[324893184,1714402232592,-155.00675634,0.00011767,2]
[324893185,1714402232604,-2076.30895403,0.00011804,2]
[324893186,1714402232613,-152.88419475,0.00011829,2]
[324893187,1714402232622,-448.0611285,0.00011862,2]
[324893188,1714402232631,-173.12591079,0.00011863,2]
[324893189,1714402232642,-2076.30895403,0.0001187,2]
[324893190,1714402232652,-153.74346246,0.00011871,2]
[324893191,1714402232662,-6071.98011474,0.00011949,2]
[324893201,1714402237949,-10414.41638526,0.00011949,2]
[324893203,1714402237958,-19135.02767461,0.00011949,2]
[324893207,1714402237986,-14407.74805121,0.00011949,2]
[324893210,1714402237996,-5307.6195,0.0001195,2]
[324893212,1714402238005,-826.05,0.00011952,2]
[324893213,1714402238015,-527.61,0.00011967,2]
[324893214,1714402238024,-152.88419475,0.00011973,2]
[324893215,1714402238034,-366.2073039,0.00012,2]
[324893216,1714402238043,-241.88017996,0.00012015,2]
[324893217,1714402238052,-500.0,0.00012048,2]
[324893218,1714402238062,-500.0,0.00012048,2]
[324893219,1714402238072,-500.0,0.00012048,2]
[324893220,1714402238081,-500.0,0.00012048,2]
[324893221,1714402238090,-500.0,0.00012048,2]
[324893222,1714402238099,-582.92,0.00012048,2]
[324893223,1714402238109,-500.0,0.00012048,2]
[324893224,1714402238118,-655.05,0.00012048,2]
[324893225,1714402238128,-797.14,0.00012048,2]
[324893226,1714402238138,-471.66483075,0.00012048,2]
[324893227,1714402238192,-28.33516925,0.00012048,2]
[324893228,1714402238202,-747.42,0.00012048,2]
[324893229,1714402238211,-28.68695325,0.00012048,2]
[324893230,1714402238234,-471.31304675,0.00012048,2]
[324893231,1714402238245,-500.0,0.00012048,2]
[324893232,1714402238254,-500.0,0.00012048,2]
[324893233,1714402238264,-500.0,0.00012048,2]
[324893234,1714402238274,-500.0,0.00012048,2]
[324893235,1714402238283,-502.98,0.00012048,2]
[324893236,1714402238293,-500.0,0.00012048,2]
[324893237,1714402238302,-500.0,0.00012048,2]
[324893238,1714402238312,-500.0,0.00012048,2]
[324893239,1714402238322,-500.0,0.00012048,2]
[324893240,1714402238332,-500.0,0.00012048,2]
[324893241,1714402238342,-500.0,0.00012048,2]
[324893242,1714402238352,-500.0,0.00012048,2]
[324893243,1714402238361,-500.0,0.00012048,2]
[324893244,1714402238371,-500.0,0.00012048,2]
[324893245,1714402238380,-500.0,0.00012048,2]
[324893246,1714402238408,-500.0,0.00012048,2]
[324893247,1714402238418,-500.0,0.00012048,2]
[324893248,1714402238427,-566.0,0.00012048,2]
[324893249,1714402238436,-500.0,0.00012048,2]
[324893250,1714402238446,-1105.51,0.00012048,2]
[324893251,1714402238456,-500.0,0.00012048,2]
[324893252,1714402238465,-500.0,0.00012048,2]
[324893254,1714402238475,-500.0,0.00012048,2]
[324893255,1714402238485,-500.0,0.00012048,2]
[324893256,1714402238495,-500.0,0.00012048,2]
[324893257,1714402238505,-500.0,0.00012048,2]
[324893258,1714402238515,-500.0,0.00012048,2]
[324893259,1714402238524,-1113.83,0.00012048,2]
[324893261,1714402238534,-500.0,0.00012048,2]
[324893263,1714402238544,-500.0,0.00012048,2]
[324893265,1714402238554,-306.59,0.00012048,2]
[324893267,1714402238562,-500.0,0.00012048,2]
[324893269,1714402238572,-500.0,0.00012048,2]
[324893271,1714402238581,-414.93415619,0.00012048,2]
[324893273,1714402238591,-500.0,0.00012048,2]
[324893276,1714402238603,-500.0,0.00012048,2]
[324893279,1714402238615,-500.0,0.00012048,2]
[324893281,1714402238624,-500.0,0.00012048,2]
[324893282,1714402238635,-500.0,0.00012048,2]
[324893283,1714402238646,-500.0,0.00012048,2]
[324893284,1714402238656,-500.0,0.00012048,2]
[324893285,1714402238666,-264.34647283,0.00012048,2]
[324893286,1714402238675,-500.0,0.00012048,2]
[324893287,1714402238684,-500.0,0.00012048,2]
[324893288,1714402238695,-508.49110427,0.00012048,2]
[324893289,1714402238705,-862.24,0.00012048,2]
[324893290,1714402238715,-199.79268296,0.00012048,2]
[324893291,1714402238728,-300.20731704,0.00012048,2]
[324893293,1714402238737,-500.0,0.00012048,2]
[324893295,1714402238747,-461.00910006,0.00012048,2]
[324893449,1714402240315,-38.99089994,0.00012048,2]
[324893452,1714402240325,-500.0,0.00012048,2]
[324893454,1714402240335,-500.0,0.00012048,2]
[324893456,1714402240344,-500.0,0.00012048,2]
[324893458,1714402240354,-500.0,0.00012048,2]
[324893460,1714402240364,-500.0,0.00012048,2]
[324893462,1714402240374,-469.48760881,0.00012048,2]
[324893467,1714402240423,-30.51239119,0.00012048,2]
[324893469,1714402240432,-500.0,0.00012048,2]
[324893471,1714402240441,-500.0,0.00012048,2]
[324893473,1714402240450,-338.56,0.00012048,2]
[324893475,1714402240459,-500.0,0.00012048,2]
[324893477,1714402240468,-501.48,0.00012048,2]
[324893479,1714402240477,-500.0,0.00012048,2]
[324893481,1714402240487,-500.0,0.00012048,2]
[324893483,1714402240496,-500.0,0.00012048,2]
[324893485,1714402240505,-500.0,0.00012048,2]
[324893487,1714402240515,-500.0,0.00012048,2]
[324893489,1714402240524,-500.0,0.00012048,2]
[324893491,1714402240533,-565.85307366,0.00012048,2]
[324893493,1714402240546,-477.33692634,0.00012048,2]
[324893495,1714402240555,-500.0,0.00012048,2]
[324893497,1714402240564,-500.0,0.00012048,2]
[324893498,1714402240573,-500.0,0.00012048,2]
[324893499,1714402240583,-500.0,0.00012048,2]
[324893500,1714402240592,-500.0,0.00012048,2]
[324893501,1714402240603,-630.05275437,0.00012048,2]
[324893502,1714402240631,-419.59724563,0.00012048,2]
[324893503,1714402240642,-500.0,0.00012048,2]
[324893504,1714402240656,-500.0,0.00012048,2]
[324893505,1714402240666,-500.0,0.00012048,2]
[324893506,1714402240675,-500.0,0.00012048,2]
[324893507,1714402240685,-170.52,0.00012048,2]
[324893508,1714402240694,-723.34,0.00012048,2]
[324893509,1714402240704,-500.0,0.00012048,2]
[324893510,1714402240714,-500.0,0.00012048,2]
[324893511,1714402240723,-500.0,0.00012048,2]
[324893512,1714402240733,-500.0,0.00012048,2]
[324893513,1714402240743,-500.0,0.00012048,2]
[324893514,1714402240752,-773.32,0.00012048,2]
[324893515,1714402240762,-551.05648307,0.00012048,2]
[324893516,1714402240772,-500.0,0.00012048,2]
[324893517,1714402240781,-500.0,0.00012048,2]
[324893518,1714402240791,-500.0,0.00012048,2]
[324893519,1714402240800,-3388.21,0.00012048,2]
[324893520,1714402240809,-500.0,0.00012048,2]
[324893521,1714402240819,-500.0,0.00012048,2]
[324893522,1714402240828,-500.0,0.00012048,2]
[324893523,1714402240837,-500.0,0.00012048,2]
[324893524,1714402240846,-500.0,0.00012048,2]
[324893525,1714402240855,-500.0,0.00012048,2]
[324893526,1714402240864,-500.0,0.00012048,2]
[324893527,1714402240874,-500.0,0.00012048,2]
[324893528,1714402240883,-500.0,0.00012048,2]
[324893529,1714402240893,-1445.9,0.00012048,2]
[324893530,1714402240907,-500.0,0.00012048,2]
[324893531,1714402240917,-500.0,0.00012048,2]
[324893532,1714402240926,-500.0,0.00012048,2]
[324893533,1714402240935,-915.11,0.00012048,2]
[324893534,1714402240944,-500.0,0.00012048,2]
[324893535,1714402240953,-500.0,0.00012048,2]
[324893536,1714402240962,-500.0,0.00012048,2]
[324893537,1714402240971,-685.13,0.00012048,2]
[324893538,1714402240980,-500.0,0.00012048,2]
[324893539,1714402240990,-500.0,0.00012048,2]
[324893540,1714402241000,-500.0,0.00012048,2]
[324893541,1714402241009,-500.0,0.00012048,2]
[324893542,1714402241020,-500.0,0.00012048,2]
[324893543,1714402241030,-500.0,0.00012048,2]
[324893544,1714402241038,-474.05924005,0.00012048,2]
[324893545,1714402241051,-25.94075995,0.00012048,2]
[324893546,1714402241060,-500.0,0.00012048,2]
[324893547,1714402241069,-500.0,0.00012048,2]
[324893548,1714402241079,-500.0,0.00012048,2]
[324893549,1714402241088,-500.0,0.00012048,2]
[324893550,1714402241097,-500.0,0.00012048,2]
[324893551,1714402241106,-500.0,0.00012048,2]
[324893552,1714402241116,-1244.66,0.00012048,2]
[324893553,1714402241125,-589.29373795,0.00012048,2]
[324893554,1714402241134,-140.1055021,0.00012048,2]
[324893555,1714402241147,-359.8944979,0.00012048,2]
[324893556,1714402241161,-500.0,0.00012048,2]
[324893557,1714402241171,-500.0,0.00012048,2]
[324893558,1714402241180,-500.0,0.00012048,2]
[324893559,1714402241189,-259.2666121,0.00012048,2]
[324893560,1714402241201,-240.7333879,0.00012048,2]
[324893561,1714402241210,-500.0,0.00012048,2]
[324893562,1714402241219,-500.0,0.00012048,2]
[324893563,1714402241229,-500.0,0.00012048,2]
[324893564,1714402241238,-500.0,0.00012048,2]
[324893565,1714402241248,-635.22,0.00012048,2]
[324893566,1714402241257,-500.0,0.00012048,2]
[324893567,1714402241267,-500.0,0.00012048,2]
[324893568,1714402241276,-500.0,0.00012048,2]
[324893569,1714402241285,-605.12,0.00012048,2]
[324893570,1714402241295,-500.0,0.00012048,2]
[324893571,1714402241304,-500.0,0.00012048,2]
[324893572,1714402241313,-190.62661211,0.00012048,2]
[324893573,1714402241325,-299.8197336,0.00012048,2]
[324893574,1714402241360,-9.55365429,0.00012048,2]
[324893575,1714402241370,-500.0,0.00012048,2]
[324893576,1714402241379,-794.27,0.00012048,2]
[324893577,1714402241388,-810.79,0.00012048,2]
[324893578,1714402241400,-858.92,0.00012048,2]
[324893579,1714402241410,-500.0,0.00012048,2]
[324893580,1714402241420,-500.0,0.00012048,2]
[324893581,1714402241429,-1828.66,0.00012048,2]
[324893582,1714402241439,-500.0,0.00012048,2]
[324893583,1714402241448,-500.0,0.00012048,2]
[324893584,1714402241458,-531.23,0.00012048,2]
[324893585,1714402241467,-500.0,0.00012048,2]
[324893586,1714402241476,-500.0,0.00012048,2]
[324893587,1714402241485,-916.83,0.00012048,2]
[324893588,1714402241494,-1239.7,0.00012048,2]
[324893589,1714402241504,-500.0,0.00012048,2]
[324893590,1714402241513,-500.0,0.00012048,2]
[324893591,1714402241522,-500.0,0.00012048,2]
[324893592,1714402241531,-500.0,0.00012048,2]
[324893593,1714402241540,-500.0,0.00012048,2]
[324893594,1714402241549,-679.01,0.00012048,2]
[324893595,1714402241559,-500.0,0.00012048,2]